bitfinex/quotes_SOLUSD_20220218
["timestamp","ask_amount","ask_price","bid_price","bid_amount"]
[1645154320001,1.47980062,94.303,94.27,15.9139]
[1645154322306,1.47980062,94.302,94.27,15.9139]
[1645154323010,1.47980062,94.303,94.27,15.9139]
[1645154323409,1.47980062,94.302,94.27,15.9139]
[1645154324412,48.21099749,94.302,94.263,23.4823]
[1645154324612,15.9158,94.3,94.233,5.303]
[1645154324813,1.47980062,94.29,94.231,28.6397]
[1645154325012,1.47980062,94.291,94.231,28.6397]
[1645154325439,1.47980062,94.293,94.231,28.6397]
[1645154325612,15.9184,94.29,94.24,15.9184]
[1645154325812,15.9184,94.29,94.231,28.6397]
[1645154325813,1.47980062,94.287,94.231,23.3357]
[1645154326021,1.47980062,94.283,94.231,23.3357]
[1645154326617,1.47980062,94.283,94.232,39.99793348]
[1645154327018,1.47980062,94.282,94.232,39.99793348]
[1645154327218,1.47980062,94.28,94.232,39.99793348]
[1645154327418,1.47980062,94.279,94.232,39.99793348]
[1645154327823,105.2,94.277,94.202,24.6496]
[1645154328019,1.47980062,94.27,94.202,24.6496]
[1645154328222,5.305,94.269,94.202,24.6496]
[1645154328424,1.47980062,94.265,94.202,24.6496]
[1645154328634,5.305,94.264,94.202,24.6496]
[1645154328821,15.9257,94.25,94.203,48.52955826]
[1645154336368,15.9257,94.25,94.19,15.9263]
[1645154336369,105.2,94.248,94.169,5.53374974]
[1645154336560,15.9292,94.23,94.15,3.0]
[1645154336862,5.307,94.247,94.15,3.0]
[1645154336863,105.2,94.229,94.15,3.0]
[1645154337079,107.83428653,94.229,94.15,3.0]
[1645154337261,144.07970199,94.227,94.151,49.35744559]
[1645154337459,5.308,94.226,94.151,49.35744559]
[1645154337661,15.9353,94.21,94.152,5.308]
[1645154337860,5.308,94.246,94.153,105.2]
[1645154338102,5.308,94.246,94.154,5.307]
[1645154338263,5.308,94.246,94.153,5.307]
[1645154338463,5.308,94.246,94.152,5.307]
[1645154338662,5.308,94.246,94.152,54.1263]
[1645154338663,105.2,94.245,94.152,54.1263]
[1645154338864,15.9305,94.23,94.152,54.1263]
[1645154339062,29.4814,94.229,94.152,54.1263]
[1645154339262,24.1734,94.229,94.152,54.1263]
[1645154339462,5.308,94.228,94.152,54.1263]
[1645154340464,15.9324,94.21,94.152,54.1263]
[1645154342064,24.5927,94.213,94.152,54.1263]
[1645154342468,15.9306,94.22,94.153,105.2]
[1645154342667,15.9306,94.22,94.154,5.308]
[1645154342866,15.9306,94.22,94.153,5.308]
[1645154343672,68.03722168,94.22,94.153,5.308]
[1645154343866,24.5366,94.219,94.153,5.308]
[1645154352676,15.9286,94.23,94.154,105.2]
[1645154352901,15.9286,94.23,94.156,105.2]
[1645154353275,15.9286,94.23,94.158,105.2]
[1645154353475,46.94032044,94.229,94.158,105.2]
[1645154353676,46.94032044,94.229,94.152,48.8193]
[1645154353677,46.94032044,94.229,94.159,5.308]
[1645154353877,46.94032044,94.229,94.154,5.308]
[1645154354082,46.94032044,94.229,94.153,5.308]
[1645154354584,46.94032044,94.229,94.16,15.9283]
[1645154354781,46.94032044,94.229,94.161,5.308]
[1645154358782,15.9298,94.22,94.161,5.308]
[1645154359988,15.9298,94.22,94.153,5.308]
[1645154361720,105.2,94.219,94.152,24.3796]
[1645154361916,15.9357,94.2,94.152,24.3796]
[1645154362416,5.309,94.199,94.152,24.3796]
[1645154362715,105.2,94.215,94.152,24.3796]
[1645154363119,105.2,94.213,94.15,3.0]
[1645154363315,15.936,94.19,94.15,3.0]
[1645154363716,5.309,94.189,94.15,3.0]
[1645154364314,106.67980062,94.207,94.15,3.0]
[1645154364515,128.2041,94.207,94.15,3.0]
[1645154364720,105.2,94.205,94.15,3.0]
[1645154364915,105.2,94.203,94.15,3.0]
[1645154365317,15.9382,94.18,94.15,3.0]
[1645154365719,105.2,94.179,94.15,3.0]
[1645154365918,113.14328653,94.179,94.15,3.0]
[1645154366120,105.2,94.177,94.15,3.0]
[1645154366419,105.2,94.175,94.15,3.0]
[1645154366638,105.2,94.169,94.15,3.0]
[1645154367017,53.13026864,94.178,94.15,3.0]
[1645154367018,105.2,94.167,94.15,3.0]
[1645154367426,105.2,94.167,94.093,5.309]
[1645154367427,105.2,94.163,94.093,5.309]
[1645154367619,105.2,94.163,94.066,42.88975521]
[1645154367620,105.2,94.161,94.081,36.11317018]
[1645154367819,105.2,94.159,94.081,36.11317018]
[1645154368020,105.2,94.159,94.062,5.312]
[1645154368223,11.1064309,94.14,94.061,24.3264]
[1645154368422,110.513,94.139,94.061,24.3264]
[1645154369020,105.2,94.137,94.062,41.73969045]
[1645154369219,105.2,94.135,94.062,41.73969045]
[1645154369420,5.313,94.136,94.062,41.73969045]
[1645154369421,105.2,94.117,94.062,41.73969045]
[1645154370023,41.68936683,94.118,94.062,41.73969045]
[1645154370221,105.2,94.125,94.062,41.73969045]
[1645154370419,15.9515,94.11,94.062,41.73969045]
[1645154371025,105.2,94.109,94.044,5.314]
[1645154371321,105.2,94.109,81.41,10.0]
[1645154371322,105.2,94.089,94.023,5.314]
[1645154371525,5.315,94.088,94.011,53.5849]
[1645154371937,5.316,94.108,94.022,5.316]
[1645154372124,5.316,94.108,94.013,105.2]
[1645154372324,15.9506,94.11,94.02,15.9522]
[1645154373225,5.315,94.119,94.02,15.9522]
[1645154373429,53.1739,94.12,94.03,15.9493]
[1645154373725,53.1739,94.12,94.031,22.917]
[1645154373926,5.315,94.128,94.032,5.314]
[1645154374227,5.315,94.128,94.033,29.02320948]
[1645154374428,5.315,94.128,94.034,5.314]
[1645154374827,5.315,94.128,94.034,7.94828653]
[1645154375132,5.315,94.128,94.035,2.63428653]
[1645154375329,15.9493,94.11,94.04,15.949]
[1645154375542,15.9493,94.11,94.041,5.314]
[1645154379242,15.9493,94.11,94.051,44.48707711]
[1645154380044,15.9493,94.11,94.052,5.314]
[1645154380842,46.19494996,94.109,94.052,5.314]
[1645154381045,15.9509,94.1,94.051,44.48707711]
[1645154384447,15.9509,94.1,94.054,0.11026163]
[1645154384848,15.949,94.11,94.054,0.11026163]
[1645154385856,44.00788173,94.109,94.054,0.11026163]
[1645154386550,15.949,94.11,94.054,0.11026163]
[1645154386771,15.949,94.11,94.055,5.314]
[1645154386974,15.9473,94.12,94.06,15.9463]
[1645154387169,68.5061,94.15,94.061,105.2]
[1645154387170,5.313,94.144,94.061,105.2]
[1645154387378,53.1561,94.15,94.061,105.2]
[1645154387570,47.60023791,94.149,94.061,105.2]
[1645154387809,47.60023791,94.149,94.056,2.63428653]
[1645154387971,5.313,94.148,94.055,5.314]
[1645154388384,15.945,94.14,94.055,5.314]
[1645154388581,5.313,94.139,94.055,5.314]
[1645154389077,53.1604,94.14,94.055,5.314]
[1645154389373,15.9478,94.12,94.056,0.11015462]
[1645154389573,51.20441743,94.119,94.056,0.11015462]
[1645154391374,15.9487,94.11,94.056,0.11015462]
[1645154392012,15.9487,94.11,94.057,5.314]
[1645154394482,15.9487,94.11,94.058,0.11004762]
[1645154394878,15.9487,94.11,94.059,5.314]
[1645154399285,15.9487,94.11,94.061,0.10988712]
[1645154403096,105.2,94.109,94.061,0.10988712]
[1645154403288,15.9515,94.1,94.061,0.10988712]
[1645154404588,15.9515,94.1,94.053,57.90402111]
[1645154405889,105.2,94.099,94.053,5.42378012]
[1645154406089,15.9515,94.1,94.053,0.10978012]
[1645154406288,105.2,94.097,94.053,0.10978012]
[1645154406487,105.2,94.089,94.053,0.10978012]
[1645154406688,105.2,94.087,94.053,0.10978012]
[1645154406915,105.2,94.085,94.053,0.10978012]
[1645154407892,53.98203474,94.086,94.053,0.10978012]
[1645154408089,5.315,94.085,94.053,0.10978012]
[1645154408489,15.9572,94.08,94.053,0.10978012]
[1645154409592,15.9572,94.08,94.013,5.37010406]
[1645154409792,15.9572,94.08,94.013,0.05510406]
[1645154410594,15.9572,94.08,94.02,15.9551]
[1645154414298,15.9572,94.08,94.022,0.11197443]
[1645154414607,15.9572,94.08,94.03,15.9532]
[1645154414798,15.9572,94.08,94.031,33.91557131]
[1645154415031,15.9572,94.08,94.031,28.59957131]
[1645154416200,15.9572,94.08,94.04,15.9521]
[1645154416402,15.9514,94.09,94.04,15.9521]
[1645154416602,15.9514,94.09,94.041,22.8537]
[1645154418404,105.2,94.089,94.041,22.8537]
[1645154418614,15.9544,94.08,94.041,22.8537]
[1645154421205,15.9544,94.08,94.033,0.05569276]
[1645154422452,15.9581,94.07,94.033,0.05569276]
[1645154422808,105.2,94.069,94.033,0.05569276]
[1645154423010,110.516,94.069,94.033,0.05569276]
[1645154423606,105.2,94.068,94.033,0.05569276]
[1645154423806,15.9602,94.06,94.033,0.05569276]
[1645154424408,15.9602,94.06,94.012,46.47270853]
[1645154425612,15.9602,94.06,94.012,0.11085028]
[1645154426912,105.2,94.059,94.012,0.11085028]
[1645154427112,15.9632,94.05,94.012,0.11085028]
[1645154429417,15.9632,94.05,93.998,0.1307002]
[1645154430619,15.9632,94.05,93.999,5.317]
[1645154432127,15.9571,94.06,93.999,5.317]
[1645154432424,15.9571,94.06,94.0,24.1768]
[1645154432627,15.9571,94.06,94.001,5.317]
[1645154432958,15.9571,94.06,94.002,33.60193457]
[1645154434524,15.9571,94.06,94.003,5.317]
[1645154435327,15.9586,94.05,94.003,5.317]
[1645154435548,15.9586,94.05,94.002,33.60193457]
[1645154439157,15.9586,94.05,94.004,0.05646919]
[1645154442957,105.2,94.049,94.004,0.05646919]
[1645154443156,15.9619,94.04,94.004,0.05646919]
[1645154444358,15.9619,94.04,94.002,33.6583502]
[1645154444658,15.9585,94.05,94.002,33.6583502]
[1645154444859,15.9585,94.05,94.003,24.3412]
[1645154445158,15.9585,94.05,94.002,33.6583502]
[1645154446763,15.9585,94.05,94.003,22.7899]
[1645154449361,15.9585,94.05,94.004,0.05646919]
[1645154454164,15.9585,94.05,94.003,22.84631563]
[1645154455565,15.9585,94.05,94.003,28.16331563]
[1645154456968,15.9585,94.05,94.003,22.84631563]
[1645154458269,15.9562,94.06,94.01,15.9566]
[1645154458505,1.47980062,94.089,94.01,15.9566]
[1645154458768,1.47980062,94.093,94.011,2.63428653]
[1645154458967,1.47980062,94.097,94.011,2.63428653]
[1645154459169,45.79139845,94.095,94.011,2.63428653]
[1645154460368,15.9531,94.08,94.03,15.9531]
[1645154460607,15.9531,94.08,94.031,69.84319082]
[1645154462371,15.9531,94.08,94.04,0.4863547]
[1645154462772,15.9531,94.08,94.04,16.4382547]
[1645154462982,15.9512,94.09,94.04,16.4382547]
[1645154464376,15.9512,94.09,94.05,15.9505]
[1645154464576,15.9495,94.1,94.05,15.9505]
[1645154464783,1.47980062,94.116,94.051,23.6312]
[1645154464975,1.47980062,94.118,94.051,23.6312]
[1645154465175,53.1696,94.12,94.051,23.6312]
[1645154465378,54.45538343,94.119,94.052,33.60193457]
[1645154465780,55.93518405,94.119,94.052,33.60193457]
[1645154465978,54.45538343,94.119,94.052,33.60193457]
[1645154466381,15.9476,94.11,94.052,33.60193457]
[1645154469299,15.9476,94.11,94.054,0.11026163]
[1645154471208,105.2,94.109,94.054,0.11026163]
[1645154471405,15.9532,94.1,94.054,0.11026163]
[1645154472007,55.30832523,94.099,94.054,0.11026163]
[1645154473407,15.9537,94.09,94.054,0.11026163]
[1645154474410,15.9537,94.09,94.052,42.29718044]
[1645154474609,15.4673453,94.09,94.052,42.29718044]
[1645154474813,15.4673453,94.09,94.052,0.11015462]
[1645154478213,15.9559,94.08,94.052,0.11015462]
[1645154479015,52.12311044,94.079,94.052,0.11015462]
[1645154479417,52.12311044,94.079,94.022,48.79528616]
[1645154480015,28.7212,94.089,94.022,48.79528616]
[1645154480216,15.9562,94.07,94.022,54.11128616]
[1645154482522,15.9562,94.07,94.022,48.79528616]
[1645154483132,15.9562,94.07,94.03,15.9542]
[1645154483323,15.9562,94.07,94.045,1.1213589]
[1645154488424,15.953,94.08,94.045,1.1213589]
[1645154489024,1.47980062,94.1,94.045,1.1213589]
[1645154489226,1.47980062,94.106,94.045,1.1213589]
[1645154489426,1.47980062,94.107,94.047,0.0553181]
[1645154489925,48.2644781,94.106,94.047,0.0553181]
[1645154490224,46.78467748,94.106,94.047,0.0553181]
[1645154490428,15.9496,94.1,94.05,15.9509]
[1645154491928,15.9496,94.1,94.047,0.0553181]
[1645154492132,105.2,94.099,94.047,0.0553181]
[1645154492332,22.5708,94.105,94.047,0.0553181]
[1645154492333,15.9542,94.09,94.047,0.0553181]
[1645154493532,55.9148349,94.09,94.047,0.0553181]
[1645154494229,55.9148349,94.09,94.046,45.055687]
[1645154494631,55.9148349,94.09,94.046,0.11036865]
[1645154494830,15.955,94.08,94.046,0.11036865]
[1645154495030,105.2,94.079,94.046,0.11036865]
[1645154495231,15.955,94.08,94.046,0.11036865]
[1645154495629,105.2,94.079,94.046,0.11036865]
[1645154496231,6.79480062,94.084,94.046,0.11036865]
[1645154496429,5.315,94.084,94.046,0.11036865]
[1645154496631,1.47980062,94.08,94.046,0.11036865]
[1645154496829,5.315,94.079,94.046,0.11036865]
[1645154497031,1.47980062,94.082,94.046,0.11036865]
[1645154497235,5.315,94.081,94.046,0.11036865]
[1645154497432,15.9581,94.07,94.046,0.11036865]
[1645154499236,15.9581,94.07,94.045,1.17665025]
[1645154499436,15.9581,94.07,94.046,39.08950664]
[1645154502442,15.9581,94.07,94.045,1.17665025]
[1645154503364,106.3,94.069,94.045,1.17665025]
[1645154503663,15.9581,94.07,94.045,1.17665025]
[1645154504264,15.9581,94.07,94.048,0.05529135]
[1645154509468,15.9581,94.07,94.046,43.83807341]
[1645154512377,15.9581,94.07,94.046,0.05523783]
[1645154514377,15.9581,94.07,94.045,1.17665025]
[1645154519283,15.9581,94.07,94.047,0.0553181]
[1645154524486,15.9581,94.07,94.045,1.17662349]
[1645154529406,15.9581,94.07,94.047,0.0553181]
[1645154534312,15.9581,94.07,94.045,1.17662349]
[1645154539428,15.9581,94.07,94.047,0.11063621]
[1645154544330,15.9581,94.07,94.045,1.1213589]
[1645154544331,15.9581,94.07,94.045,1.17662349]
[1645154548434,15.9529,94.08,94.05,15.9517]
[1645154548635,1.49943236,94.091,94.05,15.9517]
[1645154548859,2.95341847,94.118,94.045,1.17662349]
[1645154548860,1.49956455,94.102,94.051,134.5161]
[1645154549036,1.49956455,94.102,94.051,131.83538653]
[1645154549237,2.95341847,94.132,94.052,5.314]
[1645154549434,6.04295237,94.132,94.053,131.71833089]
[1645154549635,6.04295237,94.132,94.054,5.313]
[1645154550336,15.9461,94.12,94.06,15.9486]
[1645154550538,15.9461,94.12,94.061,5.313]
[1645154550736,15.9461,94.12,94.062,24.2306]
[1645154550974,15.9461,94.12,94.063,5.314]
[1645154552341,15.9461,94.12,94.07,15.946]
[1645154552541,15.9461,94.12,94.071,45.90440824]
[1645154553139,15.945,94.13,94.071,152.20440824]
[1645154554042,5.313,94.146,94.08,15.9459]
[1645154554846,5.313,94.146,94.081,24.9508]
[1645154555043,15.9434,94.14,94.09,15.9432]
[1645154555242,15.9434,94.14,94.091,31.61871653]
[1645154555467,15.9434,94.14,94.092,24.9508]
[1645154555643,5.312,94.159,94.092,24.9508]
[1645154555844,2.95341847,94.166,94.092,24.9508]
[1645154556142,15.9404,94.16,94.1,15.9427]
[1645154556345,15.9404,94.16,94.101,106.3]
[1645154556743,15.9404,94.16,94.092,24.9508]
[1645154557344,15.9404,94.16,94.11,15.94]
[1645154557543,15.9404,94.16,94.111,22.5604]
[1645154557744,15.9404,94.16,94.112,45.90440824]
[1645154560250,57.95768635,94.16,94.111,22.5604]
[1645154560486,106.3,94.159,94.111,22.5604]
[1645154560649,15.9437,94.15,94.07,15.35]
[1645154560951,15.9437,94.15,94.071,23.7859]
[1645154561151,5.313,94.149,94.071,23.7859]
[1645154561349,5.312,94.157,94.072,51.4762096]
[1645154561550,5.312,94.157,94.08,15.945]
[1645154561849,42.01728635,94.16,94.08,15.945]
[1645154562751,42.01728635,94.16,94.081,2.63428653]
[1645154563049,15.9421,94.15,94.09,15.9438]
[1645154563249,15.9421,94.15,94.091,49.82061517]
[1645154569159,113.9,94.173,94.1,15.9421]
[1645154569355,2.95341847,94.191,94.101,106.3]
[1645154569559,24.8398,94.191,94.101,137.83508653]
[1645154569757,31.40641847,94.217,94.101,137.83508653]
[1645154569959,5.211,94.211,94.103,106.3]
[1645154570159,106.3,94.215,94.12,15.9384]
[1645154570356,106.3,94.209,94.103,5.309]
[1645154570557,2.95341847,94.201,94.105,5.309]
[1645154570757,106.3,94.199,94.103,5.309]
[1645154570956,15.9405,94.18,94.103,5.309]
[1645154571160,24.0436,94.179,94.103,5.309]
[1645154571356,40.30144874,94.178,94.103,5.309]
[1645154571558,40.30144874,94.178,94.11,15.9402]
[1645154571772,4.856,94.177,94.11,15.9402]
[1645154572162,106.3,94.169,94.102,23.7549]
[1645154572364,106.3,94.167,94.102,23.7549]
[1645154572964,23.6846,94.168,94.102,23.7549]
[1645154573179,5.311,94.167,94.102,23.7549]
[1645154573368,15.9424,94.16,94.102,23.7549]
[1645154574269,46.5341764,94.159,94.102,23.7549]
[1645154575872,46.5341764,94.159,94.102,64.72653169]
[1645154576770,46.5341764,94.159,94.102,23.7549]
[1645154577574,15.9434,94.15,94.102,23.7549]
[1645154580587,15.9434,94.15,94.083,5.312]
[1645154580797,5.312,94.149,94.084,24.8804]
[1645154581189,15.9457,94.14,94.084,24.8804]
[1645154581789,48.15274953,94.139,94.085,40.1699063]
[1645154581990,48.15274953,94.139,94.09,15.9441]
[1645154582491,15.9437,94.15,94.09,15.9441]
[1645154583092,24.3645,94.156,94.091,2.63428653]
[1645154583295,24.3645,94.156,94.1,15.9426]
[1645154583493,45.456245,94.155,94.1,15.9426]
[1645154583927,45.456245,94.155,94.101,24.0738]
[1645154585195,15.943,94.15,94.101,24.0738]
[1645154586199,15.943,94.15,94.09,15.9437]
[1645154586400,111.612,94.149,94.086,5.312]
[1645154586600,15.947,94.14,94.086,5.312]
[1645154587201,41.91089751,94.139,94.086,5.312]
[1645154588406,15.9471,94.13,94.086,5.312]
[1645154591709,23.9413,94.138,94.086,5.312]
[1645154592007,185.7,94.218,94.086,5.312]
[1645154592008,28.4108,94.166,94.086,5.312]
[1645154592207,21.9774411,94.166,94.087,23.4195]
[1645154592428,6.0412971,94.165,94.087,23.4195]
[1645154592607,21.9774411,94.166,94.088,5.312]
[1645154592809,48.2124842,94.164,94.089,7.39796646]
[1645154593010,48.2124842,94.164,94.09,5.311]
[1645154593408,15.9435,94.15,94.09,21.2555]
[1645154593611,54.70227206,94.149,94.09,21.2555]
[1645154594209,21.9774411,94.166,94.09,21.2555]
[1645154594410,15.9417,94.16,94.09,21.2555]
[1645154595211,21.9774411,94.166,94.091,108.93428653]
[1645154595411,21.9774411,94.166,94.11,15.9392]
[1645154595663,15.94,94.17,94.112,41.67056542]
[1645154595815,15.94,94.17,94.113,5.311]
[1645154596014,2.95341847,94.196,94.113,111.611]
[1645154596216,2.95341847,94.199,94.113,114.24528653]
[1645154596415,2.95341847,94.206,94.121,106.3]
[1645154596614,2.95341847,94.208,94.123,106.3]
[1645154596918,55.07351305,94.198,94.123,106.3]
[1645154597114,8.26241847,94.209,94.124,5.309]
[1645154597314,2.95341847,94.209,94.124,5.309]
[1645154597515,2.95341847,94.209,94.125,2.63428653]
[1645154597752,6.03897365,94.209,94.125,108.93428653]
[1645154597921,8.26241847,94.218,94.131,106.3]
[1645154598219,50.45946287,94.217,94.132,113.69796646]
[1645154598418,6.0384339,94.216,94.132,116.33225299]
[1645154598616,6.0384339,94.216,94.134,106.3]
[1645154599313,6.0384339,94.216,94.15,15.9315]
[1645154599515,44.42102897,94.217,94.152,41.67056542]
[1645154601324,44.42102897,94.217,94.16,15.9311]
[1645154601916,15.9331,94.21,94.16,15.9311]
[1645154602319,15.9331,94.21,94.152,41.67056542]
[1645154602920,44.42102897,94.217,94.152,41.67056542]
[1645154603218,15.9318,94.22,94.152,41.67056542]
[1645154604422,55.02357659,94.219,94.16,15.9322]
[1645154604820,15.9332,94.21,94.152,41.67056542]
[1645154605424,55.02357659,94.219,94.16,15.932]
[1645154613242,15.9329,94.21,94.16,15.932]
[1645154624781,6.03830099,94.209,94.16,15.932]
[1645154627978,8.99171946,94.209,94.16,15.932]
[1645154629281,2.95341847,94.209,94.16,15.932]
[1645154630512,2.95341847,94.211,94.16,15.932]
[1645154631211,2.95341847,94.21,94.16,15.932]
[1645154631612,2.95341847,94.209,94.16,15.932]
[1645154632614,2.95341847,94.21,94.16,15.932]
[1645154633613,6.03830099,94.214,94.16,15.932]
[1645154633614,48.08918882,94.209,94.16,15.932]
[1645154633813,8.99171946,94.208,94.16,15.932]
[1645154634216,6.03830099,94.208,94.16,15.932]
[1645154634817,2.95341847,94.209,94.16,15.932]
[1645154635818,2.95341847,94.208,94.16,15.932]
[1645154636054,8.99171946,94.208,94.16,15.932]
[1645154636215,2.95341847,94.209,94.16,15.932]
[1645154637016,2.95341847,94.208,94.16,15.932]
[1645154640525,2.95341847,94.21,94.16,15.932]
[1645154640723,2.95341847,94.212,94.16,15.932]
[1645154640923,6.03830099,94.209,94.16,15.932]
[1645154641124,2.95341847,94.212,94.16,15.932]
[1645154641725,2.95341847,94.213,94.16,15.932]
[1645154641927,8.99171946,94.214,94.16,15.932]
[1645154642125,15.932,94.21,94.16,15.932]
[1645154642367,23.4606,94.215,94.152,41.67056542]
[1645154642368,2.95341847,94.207,94.152,41.67056542]
[1645154642527,6.03830099,94.208,94.152,41.67056542]
[1645154642726,5.308,94.207,94.152,41.67056542]
[1645154642930,6.03830099,94.208,94.152,41.67056542]
[1645154643132,6.03830099,94.206,94.152,41.67056542]
[1645154643329,15.9344,94.2,94.152,41.67056542]
[1645154644132,6.03871594,94.199,94.152,41.67056542]
[1645154644331,15.9353,94.19,94.152,41.67056542]
[1645154646240,15.9353,94.19,94.151,22.8463]
[1645154648742,15.9333,94.2,94.151,22.8463]
[1645154650465,15.9333,94.2,94.16,15.9329]
[1645154651915,15.9333,94.2,94.151,22.8463]
[1645154658577,15.54226858,94.199,94.14,15.9356]
[1645154658774,15.9369,94.19,94.141,24.8506]
[1645154659173,6.03918772,94.189,94.142,46.76066617]
[1645154659373,56.07611847,94.2,94.142,46.76066617]
[1645154659576,53.1227,94.2,94.142,46.76066617]
[1645154659873,17.89775746,94.199,94.142,46.76066617]
[1645154660074,6.03896829,94.198,94.142,46.76066617]
[1645154660273,5.309,94.197,94.142,46.76066617]
[1645154660480,15.9371,94.18,94.142,46.76066617]
[1645154660672,53.1227,94.2,94.142,46.76066617]
[1645154660873,53.1227,94.2,94.15,15.9345]
[1645154661072,6.03857294,94.199,94.15,15.9345]
[1645154661475,53.1227,94.2,94.15,15.9345]
[1645154662476,15.9345,94.19,94.15,15.9345]
[1645154668886,1.49934666,94.182,94.15,15.9345]
[1645154672990,1.49934666,94.184,94.15,15.9345]
[1645154673791,1.49934666,94.183,94.15,15.9345]
[1645154674394,17.43464666,94.18,94.15,15.9345]
[1645154674795,1.49934666,94.179,94.15,15.9345]
[1645154676119,1.49934666,94.178,94.15,15.9345]
[1645154676320,15.9369,94.17,94.141,24.8506]
[1645154678522,1.49934666,94.176,94.141,24.8506]
[1645154678720,1.49934666,94.179,94.15,15.9346]
[1645154678922,1.49934666,94.177,94.15,15.9346]
[1645154679320,1.49934666,94.178,94.15,15.9346]
[1645154679546,1.49934666,94.177,94.15,15.9346]
[1645154680225,1.49934666,94.176,94.15,15.9346]
[1645154680624,1.49934666,94.177,94.15,15.9346]
[1645154680924,15.935,94.18,94.15,15.9346]
[1645154680925,1.49934666,94.176,94.15,15.9346]
[1645154681723,1.49934666,94.178,94.15,15.9346]
[1645154683523,1.49934666,94.179,94.15,15.9346]
[1645154683824,1.49934666,94.178,94.15,15.9346]
[1645154684928,1.49934666,94.179,94.15,15.9346]
[1645154685825,1.49934666,94.178,94.15,15.9346]
[1645154686425,1.49934666,94.179,94.15,15.9346]
[1645154686626,1.49934666,94.178,94.15,15.9346]
[1645154692533,1.49934666,94.177,94.15,15.9346]
[1645154692730,1.49934666,94.178,94.15,15.9346]
[1645154692931,1.49934666,94.177,94.15,15.9346]
[1645154698844,15.934,94.19,94.15,15.9346]
[1645154699142,8.26241847,94.214,94.151,106.3]
[1645154699341,6.03747237,94.213,94.16,15.931]
[1645154699678,23.4112,94.219,94.161,5.308]
[1645154699843,23.4112,94.219,94.162,23.1582]
[1645154700143,6.0373817,94.218,94.164,20.77679379]
[1645154700341,6.0373817,94.218,94.165,5.308]
[1645154700541,23.4112,94.219,94.165,5.308]
[1645154701344,15.931,94.21,94.17,15.9301]
[1645154704042,15.931,94.21,94.171,2.63428653]
[1645154704443,15.931,94.21,94.17,15.9301]
[1645154704976,23.4112,94.219,94.17,15.9301]
[1645154705145,15.9296,94.22,94.171,5.308]
[1645154705345,2.95341847,94.246,94.18,15.9272]
[1645154705548,24.057,94.245,94.181,35.06869143]
[1645154705744,6.03616764,94.244,94.181,40.37569143]
[1645154707349,15.9272,94.23,94.19,15.9269]
[1645154707955,24.057,94.245,94.19,15.9269]
[1645154708353,15.9259,94.24,94.19,15.9269]
[1645154713683,24.057,94.245,94.19,15.9269]
[1645154713884,24.057,94.245,94.191,5.306]
[1645154714081,24.057,94.245,94.201,20.77679379]
[1645154714282,24.057,94.245,94.202,23.0472]
[1645154715182,24.057,94.245,94.21,15.924]
[1645154718191,15.9242,94.25,94.211,106.3]
[1645154718386,15.9227,94.26,94.22,15.922]
[1645154724097,2.95341847,94.284,94.222,106.3]
[1645154724304,2.95341847,94.32,94.231,106.3]
[1645154724523,2.95341847,94.32,94.233,106.3]
[1645154724700,22.606,94.331,94.232,47.0792]
[1645154724701,2.95341847,94.33,94.241,106.3]
[1645154724898,2.95341847,94.336,94.241,106.3]
[1645154725098,6.03031238,94.347,94.242,7.93528653]
[1645154725299,43.11533709,94.348,94.251,106.3]
[1645154725556,7.50441847,94.362,94.253,106.3]
[1645154725698,118.401,94.363,94.253,106.3]
[1645154725901,113.9,94.363,94.254,5.301]